Cogmind - Beta 14 @@@ ROGUE MODE // 2025.03.10 @ 15:42:14 Player: canerib Result: Destroyed by as-75972 with Assembled F-torch Performance ------------- Evolutions (0) 0 Regions Visited (2) 400 Robots Destroyed (23) 115 Value Destroyed (412) 412 Prototype IDs (0) 0 Alien Tech Used (0) 0 Bonus (0) 0 TOTAL SCORE: 927 Bonus ------- None Cogmind --------- Core Integrity 0/250 Matter 233/300 Energy 125/125 System Corruption 3% Temperature Cool (20) Movement Walking (190) Ox1 Location -10/Mines Parts ------- > --- POWER (1) -------- Light Ion Engine > --- PROPULSION (2) --- Aluminum Leg Aluminum Leg > --- UTILITY (2) ------ Large Storage Unit > --- WEAPON (2) ------- Assault Rifle > --- INVENTORY (15) --- Aluminum Leg Aluminum Leg Aluminum Leg Heat Sink Improved Terrain Scanner Tractor Beam Small Laser Autogun Rocket Launcher Mining Laser Peak State ------------ > --- POWER ------------ Ion Engine > --- PROPULSION ------- Aluminum Leg Aluminum Leg > --- UTILITY ---------- Small Storage Unit Improved Terrain Scanner > --- WEAPON ----------- Medium Laser Small Laser > --- INVENTORY -------- Light Ion Engine Assault Rifle [Rating: 9] Favorites ----------- Power Ion Engine Engine Ion Engine Propulsion Aluminum Leg Leg Aluminum Leg Utility Large Storage Unit Device Terrain Scanner Storage Large Storage Unit Weapon Small Laser Energy Gun Small Laser Ballistic Gun Assault Rifle Build | -11 -10 -10 ------- Run | Yrd Mat Min Slots Evolved . | . . . Power . | . . . Propulsion . | . . . Utility . | . . . Weapon . | . . . Parts Attached 22 | 7 8 7 Power 4 | 1 1 2 Engine 4 | 1 1 2 Core . | . . . Reactor . | . . . Propulsion 6 | 2 2 2 Treads . | . . . Leg 6 | 2 2 2 Wheel . | . . . Hover . | . . . Flight . | . . . Utility 5 | 2 3 . Device 3 | 1 2 . Storage 2 | 1 1 . Processor . | . . . Hackware . | . . . Protection . | . . . Artifact . | . . . Weapon 7 | 2 2 3 Energy Gun 5 | 2 2 1 Energy Cannon . | . . . Ballistic Gun 2 | . . 2 Ballistic Cannon . | . . . Launcher . | . . . Special Weapon . | . . . Impact Weapon . | . . . Slashing Weapon . | . . . Piercing Weapon . | . . . Special Melee Weapon . | . . . Unidentified Prototypes . | . . . Parts Lost 6 | . 1 5 Power . | . . . Propulsion 1 | . . 1 Utility 2 | . 1 1 Weapon 3 | . . 3 Highest Loss Streak 4 | . 1 4 To Critical Strikes . | . . . Average Slot Usage (%) 96 | . 98 90 Engine 14 | . 14 14 Leg 27 | . 28 26 Device 12 | . 13 10 Storage 14 | . 14 14 Energy Gun 26 | . 28 21 Peak Build Rating 9 | 9 9 9 Average Rating 7 | 5 7 8 On Entrance 5 | . 9 8 Naked Turns . | . . . Heaviest Build 29 | 14 29 26 Greatest Support 20 | 20 20 20 Greatest Overweight (x) 2 | 1 1 2 Average Overweight (x) . | . . 1 Largest Inventory Capacity 15 | 8 15 15 Average Capacity 13 | 7 13 15 Most Carried 15 | 4 15 15 Average Carried 11 | 1 10 14 Final Capacity 15 | 8 15 15 Final Carried 14 | 4 14 10 Class Distribution -------------------- 51% | Mutant 48% | Scavenger-Mutant Dominant Class ---------------- Mutant | -10/Materials Scavenger-Mutant | -10/Mines Resources | -11 -10 -10 ----------- Run | Yrd Mat Min Matter Collected 407 | 270 65 72 Remotely . | . . . Salvage Created 679 | 62 508 109 Parts 49 | 8 32 9 Haulers Intercepted . | . . . Recyclers Shooed 2 | 1 1 . Parts Field Recycled . | . . . Retrieved Matter . | . . . Parts Self-Destructed . | . . . Prevented . | . . . Kills | -11 -10 -10 ------- Run | Yrd Mat Min Combat Hostiles Destroyed 20 | . 13 7 Guns 20 | . 13 7 Classes Destroyed 6 | 2 3 1 Tunneler 1 | 1 . . Recycler 2 | 1 1 . Watcher 2 | . 2 . Swarmer 11 | . 6 5 Grunt 7 | . 7 . Assembled 2 | . . 2 Best Kill Streak 5 | 2 5 3 Combat Bots Only 4 | . 4 3 Max Kills in Single Turn 2 | 1 2 2 Gunslinging 1 | . 1 1 Exploded . | . . . Melee . | . . . Uniques/NPCs Destroyed . | . . . Combat | -11 -10 -10 -------- Run | Yrd Mat Min Hostile Shots Fired 161 | . 80 81 Missed 44 | . 21 23 Damage Taken 1370 | . 617 753 Core 253 | . 116 137 Absorbed by Shields . | . . . Regen/Repaired (Parts) 12 | . 12 . Core Remaining (%) 100 | 100 . . Volleys Fired 79 | 6 53 20 Largest 2 | 2 2 2 Hottest 90 | 90 90 90 Shots Fired 151 | 12 106 33 Gun 151 | 12 106 33 Cannon . | . . . Launcher . | . . . Special . | . . . Kinetic 16 | . . 16 Thermal 135 | 12 106 17 Explosive . | . . . Electromagnetic . | . . . Robot Hit Streak 13 | 2 13 3 Robot Miss Streak 4 | 2 4 3 Penetration Max . | . . . Secondary Targets 3 | . 1 2 Max Gunslinging Chain 1 | . 1 1 Shots Hit Robots 88 | 6 65 17 Core Hits 38 | 3 26 9 Critical Kills 1 | . . 1 Critical Parts Destroyed . | . . . Critical Strikes 1 | . . 1 Destroy 1 | . . 1 Melee Attacks . | . . . Impact . | . . . Slashing . | . . . Piercing . | . . . Sneak Attacks . | . . . Combat Hostiles . | . . . Follow-up Attacks . | . . . Damage Inflicted 1034 | 73 739 222 Guns 1034 | 73 739 222 Cannons . | . . . Explosions . | . . . Melee . | . . . Ramming . | . . . Kinetic 107 | . . 107 Thermal 927 | 73 739 115 Explosive . | . . . Electromagnetic . | . . . Impact . | . . . Slashing . | . . . Piercing . | . . . Highest Corruption 3 | . 3 3 Average Corruption 2 | . 2 3 Corruption Purged . | . . . Corruption Blocked . | . . . Effects 10 | . . 10 Matter Fused 2 | . . 2 Heat Flow Errors 3 | . . 3 Energy Discharges 2 | . . 2 Data Loss (minor) 2 | . . 2 Weapon Failures 1 | . . 1 Overload Shots . | . . . Overflow Damage . | . . . Projectiles . | . . . Explosions . | . . . Melee . | . . . Knockbacks . | . . . Impact . | . . . Kinetic . | . . . Secondary . | . . . Self-Inflicted Damage . | . . . Shots . | . . . Rammed . | . . . Targets Rammed . | . . . Kicked . | . . . Crushed . | . . . Highest Temperature 369 | 120 369 253 Average Temperature 91 | 51 101 74 Received Heat Transfer 241 | . 201 40 Effects 1 | . 1 . Interference 1 | . 1 . Siege Activations . | . . . Robots Corrupted . | . . . Combat Hostiles . | . . . Parts Fried . | . . . Impact Corruptions . | . . . Robots Melted . | . . . Combat Hostiles . | . . . Parts Melted 3 | . 3 . Heat Transferred 2409 | 186 1925 298 Parts Sabotaged . | . . . Parts Stolen . | . . . Parts Stripped . | . . . Power Chain Reactions . | . . . Alert | -11 -10 -10 ------- Run | Yrd Mat Min Peak Influence 249 | 10 249 99 Initial 24 | . 6 24 Average 78 | 3 99 33 Maximum Alert Level 1 | . 1 . Low Security (%) 93 | 100 91 100 Level 1 6 | . 8 . Level 2 . | . . . Level 3 . | . . . Level 4 . | . . . Level 5 . | . . . High Security . | . . . Max Security . | . . . Squads Dispatched 4 | . 4 . Investigation 2 | . 2 . Extermination . | . . . Reinforcement 2 | . 2 . Assault . | . . . Garrison . | . . . Intercept . | . . . Searches Triggered . | . . . Construction Impeded . | . . . Haulers Reinforced . | . . . Active Scanning Responses . | . . . Cargo Convoy Interrupts . | . . . Stealth | -11 -10 -10 --------- Run | Yrd Mat Min Distress Signals 1 | . 1 . Communications Jammed . | . . . Distress Signals . | . . . Times Spotted 42 | . 25 17 Peak Tracking Total 10 | . 4 10 Tactical Retreats 7 | . 4 3 Traps | -11 -10 -10 ------- Run | Yrd Mat Min Traps Triggered 3 | . 3 . Indirectly . | . . . Trap Hack Attempts . | . . . Triggered . | . . . Disarmed . | . . . Reprogrammed . | . . . Reused . | . . . Traps Extracted . | . . . Installed . | . . . Triggered . | . . . Machines | -11 -10 -10 ---------- Run | Yrd Mat Min Machines Disabled . | . . . Max in Single Turn . | . . . Machines Repaired . | . . . Machines Dismantled . | . . . Machines Sabotaged . | . . . Overloaded Fab Kills . | . . . Hacking | -11 -10 -10 --------- Run | Yrd Mat Min Machines Accessed 8 | . 8 . Terminals 7 | . 7 . Fabricators . | . . . Repair Stations 1 | . 1 . Recycling Units . | . . . Scanalyzers . | . . . Garrison Access . | . . . Total Hacks 21 | . 21 . Successful 8 | . 8 . Failed 13 | . 13 . Catastrophic 5 | . 5 . Database Lockouts . | . . . Manual 14 | . 14 . Terminals 19 | . 19 . Fabricators . | . . . Repair Stations 2 | . 2 . Recycling Units . | . . . Scanalyzers . | . . . Garrison Access . | . . . Terminal Hacks 4 | . 4 . Level Access Points 1 | . 1 . Emergency Access Points 1 | . 1 . Alert Level 2 | . 2 . Fabricator Hacks . | . . . Repair Station Hacks 2 | . 2 . Scan Component 1 | . 1 . Repair 1 | . 1 . Recycling Unit Hacks . | . . . Scanalyzer . | . . . Garrison Access Hacks . | . . . Unauthorized Hacks 2 | . 2 . Terminals 2 | . 2 . Botnet 2 | . 2 . Fabricators . | . . . Repair Stations . | . . . Recycling Units . | . . . Scanalyzers . | . . . Garrison Access . | . . . Data Cores Recovered . | . . . Used . | . . . Hacking Detections 8 | . 8 . Full Trace Events 2 | . 2 . Feedback Events . | . . . Feedback Blocked . | . . . Robot Schematics Acquired . | . . . Robots Built . | . . . Authchips . | . . . Time . | . . . Total Robot Build Rating . | . . . Part Schematics Acquired . | . . . Parts Built . | . . . Authchips . | . . . Time . | . . . Total Part Build Rating . | . . . Parts Repaired 1 | . 1 . Time 38 | . 38 . Parts Recycled . | . . . Recycled Matter . | . . . Retrieved Matter . | . . . Retrieved Components . | . . . Parts Scanalyzed . | . . . Part Schematics Acquired . | . . . Parts Damaged . | . . . Bothacking | -11 -10 -10 ------------ Run | Yrd Mat Min Used RIF Installer . | . . . Robots Hacked . | . . . Non-combat . | . . . Combat . | . . . Robot Hacks Applied . | . . . Relay Couplers Released . | . . . Fabnet Peak Effective % . | . . . Robots Rewired . | . . . Allies Hacked . | . . . Hacks Repelled . | . . . Allies | -11 -10 -10 -------- Run | Yrd Mat Min Total Allies . | . . . Largest Group . | . . . Highest-Rated Group . | . . . Highest-Rated Ally . | . . . Total Orders . | . . . Ally Attacks . | . . . Total Damage . | . . . Kills . | . . . Allies Corrupted . | . . . Allies Melted . | . . . Intel | -11 -10 -10 ------- Run | Yrd Mat Min Robot Analysis Total . | . . . Derelict Logs Recovered 2 | . . 2 Drone Launches . | . . . Drone Recoveries . | . . . Exploration | -11 -10 -10 ------------- Run | Yrd Mat Min Turns Passed 1930 | 80 1343 507 Spaces Moved 896 | 42 628 226 Core 6 | 6 . . Treads . | . . . Legs 890 | 36 628 226 Wheels . | . . . Hover . | . . . Flight . | . . . Fastest Speed 50 | 50 120 190 Average Speed 172 | 113 168 193 Slowest Speed 260 | 120 190 260 Overloaded Moves . | . . . Propulsion Burnouts . | . . . Robots Hopped . | . . . Cave-ins Triggered . | . . . Exploration Rate (%) 46 | 4 92 44 Regions Visited 2 Branch Regions 1 Pre-discovered Areas . | . . . Known Exits Taken . | . . . Unknown Exits Taken 2 | 1 1 . Scrap Searched 1 | . . 1 Spaces Dug . | . . . Terrain Destroyed . | . . . Melee . | . . . Projectile . | . . . AOE . | . . . Terrain Rammed . | . . . Walls Destroyed . | . . . Machines Disabled . | . . . Actions | -11 -10 -10 --------- Run | Yrd Mat Min Total 1129 | 59 805 265 Wait 113 | 1 104 8 Move 894 | 41 627 226 Hop . | . . . Pick Up 14 | 4 9 1 Fast Attach 8 | 7 1 . Attach 5 | . 1 4 Detach . | . . . Swap 9 | . 6 3 Drop 7 | . 4 3 Fire 79 | 6 53 20 Melee . | . . . Ram . | . . . Kick . | . . . Crush . | . . . Escape Stasis . | . . . Rewire . | . . . Trap . | . . . Miscellaneous . | . . . Route ------- -11/Scrapyard -10/Materials (discovered 5 exits: *Mat x3 / [*Min x2]) -10/Mines History --------- Turn | Location | Event 16 | -11/Scrapyard | Discovered new exit (range 15) 81 | -11/Scrapyard | Entered Materials 266 | -10/Materials | Repaired Imp. Terrain Scanner 289 | -10/Materials | Discovered new exit (range 16) 307 | -10/Materials | Build established: Mutant 431 | -10/Materials | Identified exit to Materials 540 | -10/Materials | Discovered new exit (range 7) 1176 | -10/Materials | Build established: Scavenger-Mutant 1318 | -10/Materials | Discovered new exit (range 16) 1424 | -10/Materials | Entered Mines 1433 | -10/Mines | Received a Rocket Launcher from a helpful Derelict 1445 | -10/Mines | Met a Derelict bent on vengeance 1547 | -10/Mines | Learned location of 1 exit from Materials 1724 | -10/Mines | Core integrity fell below 50% 1844 | -10/Mines | Lost 4 parts (1n1u2w) 1870 | -10/Mines | Learned Materials trap positions 1877 | -10/Mines | Assembled infested the area 1926 | -10/Mines | Core integrity fell below 20% 1931 | -10/Mines | Destroyed by as-75972 with Assembled F-torch Last Messages --------------- 01849_ Acquired 17 matter. 01850_ K-01 Serf collects debris. 01856_ System corrupted: Heat flow error (+232). 01856_ K-01 Serf collects debris. 01870_ Acquired derelict log, extracted data. Data stored: Materials trap records. 01877_ ALERT: Infestation in the mines, dispatching Demolisher response squad. 01881_ System corrupted: Matter fused (-6). 01896_ System corrupted: Component data lost. 01905_ as-24692 suffers critical hit (Destroy). 01905_ as-24692 destroyed. 01905_ Switching to secondary target: as-22605. 01917_ Destroyed Asb. Hover Unit. 01917_ as-25867 destroyed. 01919_ Autogun destroyed. 01925_ as-22605 destroyed. 01926_ Acquired 9 matter. 01927_ as-93788 destroyed. 01930_ U-05 Engineer lays Concrete. Map ----- +----------------------------------------------------+ | ????????# #?????#?#####????#??#????????????? | | ???????## #????### ##?? #???????????????? | | ???????# ##?## ### #???????????????? | | ???????? """ ### =*[ #???????????????? | | ???????? """ % #####???????????????? | | ??#????# """ #???????????????????? | | ???????# ##???????????????????? | | ???#???## ### [ ##????????????????????? | | #??????#????#### =%##?????????????????????? | | #??????????????## [%=#??????????????????????? | | #??????????????## %####????????????????????? | | ???????????????# # #???? ???????????????? | | ??#??????##???## * #????????????????????? | | #??????????#??# % #????????????????????? | | #???#?#?????#?# ! ##???????????????????? | | #?????????###### #???????????????????? | | #????????## ### d #???????????????????? | | ##??????## % % #???????????????????? | | ??######## *%= ## #????????????????????? | | ### %=* ## #????????????????????? | | ## =[ ##? #????????????????????? | | ####### ####### ##???????????????????? | | #???????# ###### #???????????????????? | | ##???#???# a #???????????????????? | | ####????#???### ##### #???????????????????? | | #?#?#?????????# #?#?# @ #???????????????????? | | #?#??####?????# #??# #???????????????????? | | ####?## ##?#??# ##?## ######??????????????? | | ?????# ##??## #???# a ???????? | | ?????# ###?# #???### ## ##### #???????????? | | ????## ### #?????####? #???????????????????? | | ???## ## #???????????#???????????????????? | | ?### ##??????????????????????????????? | | ## ## ### #??????????????????????????? | | #### #??????????????????????????? | | # ##?# #### #???#??????????????????????? | | # ##??# ##???????????????????????????????? | | ##???# ##????????????????????????????????? | | ##????## ##?????????????????????????????????? | | ##?#????#####??????????????????????????????????? | | #????????#?????????#???????????????????????????? | | ##???#????????????#?????????????????????????????? | | ##??#????????????????????????????????????????????? | | ????#????????????????????????????????????????????? | | ?????????????????????????????????????????????????? | | | | | | | | | | | +----------------------------------------------------+ Best States ------------- Heat Dissipation 25 Energy Generation 10 Energy Capacity 250 Matter Stores 300 Matter Capacity 300 Sight Range 16 Terrain Scan Range 16 Terrain Scan Density 10 Evasion (%) 55 Item Schematics ----------------- None Robot Schematics ------------------ None Fabricated ------------ Nothing Alien Tech Used ----------------- None Achievements -------------- None Challenges ------------ None Game ------ Seed ThrowingAngularBlade Manual? 0 Play Time 00:16:50 Cumulative 55.2 hours Start 2025.03.10 @ 15:28:00 End 2025.03.10 @ 15:42:14 Sessions 1 Manual Loads 0 Difficulty Rogue Special Mode None Game No. 76 Rogue 76 Adventurer 0 Explorer 0 Win Type - Total 1 Types 1/0/0/0/0/0/0/0/0 Lore% 24 Gallery% 40 Achievement% 36 Wizard Run 0 Options --------- Layout 1 ASCII 1 Keyboard 0 Movement Numpad Keybinds 0 Fullscreen 1 Font 24/Smallcaps Map View 50x35 Zoom Use 0% Tactical HUD 1 Map Filters NONE Filters NONE Steam 1 RUN: 28e7818b-b8a3-4500-8d74-ada1fd107ecf